bitfinex-derivatives/quotes_SOLF0:USTF0_20220106
["timestamp","ask_amount","ask_price","bid_price","bid_amount"]
[1641500003033,39.6968,153.04,152.97,20.61698744]
[1641500003034,53.44042913,153.04,152.97,20.61698744]
[1641500003234,63.10042913,153.04,152.97,20.61698744]
[1641500005736,63.10042913,153.04,152.97,13.74362913]
[1641500005936,63.10042913,153.04,152.96,41.40841913]
[1641500007338,16.92909838,153.03,152.97,1.42492399]
[1641500008340,3.18546925,153.03,152.97,22.04191698]
[1641500009139,3.18546925,153.03,152.97,1.42492399]
[1641500011242,16.92909838,153.03,152.97,1.42492399]
[1641500012845,3.18546925,153.03,152.97,1.42492399]
[1641500013746,3.18546925,153.03,152.97,22.0419024]
[1641500014150,3.18546925,153.03,152.98,4.0]
[1641500014848,3.18546925,153.03,152.97,22.0419024]
[1641500015450,16.92909838,153.04,152.99,1.42492399]
[1641500016149,27.66479,153.05,152.96,27.66479]
[1641500016649,55.32958,153.05,152.96,27.66479]
[1641500019151,13.74362913,153.03,152.97,1.42490242]
[1641500020152,47.04842913,153.03,152.97,1.42490242]
[1641500020954,7.18559868,153.02,152.97,1.42490242]
[1641500021154,13.47659868,153.02,152.97,1.42490242]
[1641500021557,9.47659868,153.02,152.97,1.42490242]
[1641500021753,13.47659868,153.02,152.97,1.42490242]
[1641500021953,16.92922781,153.01,152.94,13.74362913]
[1641500022558,44.59401781,153.01,152.94,13.74362913]
[1641500023155,44.59401781,153.01,152.93,13.74362913]
[1641500024056,3.18559868,153.0,152.93,13.74362913]
[1641500025061,13.74362913,152.99,152.96,4.61152642]
[1641500026159,16.92922781,153.0,152.96,4.61152642]
[1641500026759,13.74362913,152.99,152.95,4.61152642]
[1641500030062,13.74362913,152.98,152.94,4.61152642]
[1641500030962,16.92922781,152.98,152.94,4.61152642]
[1641500031763,22.11822781,152.98,152.94,4.61152642]
[1641500032465,3.18559868,152.97,152.94,4.61152642]
[1641500033765,16.92922781,152.97,152.93,4.61152642]
[1641500034267,4.0,152.94,152.91,1.42490242]
[1641500034466,4.0,152.92,152.83,32.868]
[1641500034667,27.66479,152.89,152.83,32.868]
[1641500034966,27.66479,152.89,152.81,27.66479]
[1641500034967,33.56279,152.89,152.88,13.83733502]
[1641500035972,33.56279,152.89,152.83,6.87056418]
[1641500036371,26.18054422,152.89,152.83,6.87056418]
[1641500037176,5.898,152.89,152.83,6.87056418]
[1641500037375,4.0,152.9,152.83,6.87056418]
[1641500037576,36.8894,152.91,152.83,6.87056418]
[1641500038475,11.58796125,152.9,152.82,33.1192]
[1641500038676,44.48375125,152.9,152.82,33.1192]
[1641500039278,32.89579,152.9,152.82,33.1192]
[1641500041580,32.89579,152.9,152.83,6.86934934]
[1641500042682,32.89579,152.9,152.84,27.66479]
[1641500043684,118.29263682,153.14,153.09,1129.02324983]
[1641500043885,125.34697862,153.27,153.13,4.0]
[1641500044084,135.18697862,153.27,153.17,4.0]
[1641500044284,125.34697862,153.27,153.17,5.116]
[1641500044484,145.34697862,153.27,153.17,5.116]
[1641500044685,125.34697862,153.27,153.17,5.116]
[1641500045487,20.0,153.28,153.17,5.116]
[1641500045888,28.00154063,153.37,153.17,9.116]
[1641500046088,20.0,153.29,153.17,5.116]
[1641500046789,27.66479,153.28,153.2,27.66479]
[1641500048091,20.0,153.26,153.13,5.976]
[1641500048293,20.0,153.26,153.12,4.0]
[1641500048492,11.55189745,153.27,153.12,4.0]
[1641500048690,27.66479,153.24,153.15,27.66479]
[1641500048892,11.55189745,153.27,153.15,27.66479]
[1641500049192,11.55189745,153.27,153.15,32.81879]
[1641500049494,20.0,153.23,153.15,5.154]
[1641500049692,20.0,153.2,153.04,33.2177]
[1641500049893,20.0,153.2,153.07,4.0]
[1641500050191,20.0,153.23,153.07,9.928]
[1641500050392,20.0,153.23,153.07,5.928]
[1641500050594,20.0,153.17,153.07,5.928]
[1641500050799,53.06879,153.17,153.08,27.66479]
[1641500050998,20.0,153.16,153.05,34.61241672]
[1641500051200,20.0,153.16,153.04,6.94762672]
[1641500052197,48.00154063,153.16,152.96,18.22040345]
[1641500052399,48.00154063,153.16,152.99,4.0]
[1641500052797,27.66479,153.07,152.99,31.66479]
[1641500053401,4.841,153.13,152.99,31.66479]
[1641500054299,4.841,153.13,153.0,6.94762672]
[1641500054900,24.841,153.13,153.02,27.66479]
[1641500055099,24.841,153.13,153.0,6.94762672]
[1641500055407,20.0,153.1,153.0,6.94762672]
[1641500055799,20.0,153.07,153.0,6.94762672]
[1641500056003,20.0,153.04,153.0,6.94762672]
[1641500056199,20.0,153.04,152.94,55.30204498]
[1641500056399,20.0,153.04,152.91,4.0]
[1641500056799,27.66479,153.02,152.91,4.0]
[1641500057001,53.70979,153.02,152.9,31.66479]
[1641500057503,33.70979,153.02,152.9,31.66479]
[1641500057701,11.55189745,153.01,152.91,6.94817903]
[1641500058703,27.66479,152.99,152.91,6.94817903]
[1641500059902,11.55189745,152.98,152.89,6.94817903]
[1641500060103,18.75589745,152.98,152.89,6.94817903]
[1641500060905,27.66479,152.91,152.89,6.94817903]
[1641500061106,33.41479,152.91,152.89,6.94817903]
[1641500061906,33.41479,152.91,152.86,27.66479]
[1641500062705,33.41479,152.91,152.82,11.27678447]
[1641500063608,20.0,152.89,152.82,11.27678447]
[1641500064208,20.0,152.89,152.8,6.94867318]
[1641500064409,20.0,152.85,152.8,6.94867318]
[1641500064709,26.434,152.85,152.8,6.94867318]
[1641500064912,27.66479,152.81,152.8,6.94867318]
[1641500065113,34.42479,152.81,152.8,6.94867318]
[1641500065310,6.76,152.81,152.8,6.94867318]
[1641500065510,6.76,152.81,152.77,17.84730333]
[1641500066010,13.84730333,152.85,152.77,17.84730333]
[1641500066212,13.84730333,152.85,152.77,13.84730333]
[1641500066613,13.84730333,152.85,152.72,31.66479]
[1641500066811,27.66479,152.82,152.73,6.94867318]
[1641500067011,34.88479,152.82,152.73,6.94867318]
[1641500067414,34.88479,152.82,152.74,4.0]
[1641500067815,34.88479,152.82,152.77,13.84795467]
[1641500069613,48.73209333,152.82,152.75,13.84795467]
[1641500070012,48.73209333,152.82,152.77,4.0]
[1641500070214,48.73209333,152.82,152.75,13.84795467]
[1641500070414,48.73209333,152.82,152.75,17.84795467]
[1641500070614,48.73209333,152.82,152.73,6.94867318]
[1641500070615,34.88479,152.82,152.79,13.84795467]
[1641500071717,34.88479,152.82,152.78,13.84795467]
[1641500072418,34.88479,152.82,152.77,13.84795467]
[1641500073417,34.88479,152.82,152.78,4.0]
[1641500073619,43.74041172,152.87,152.81,4.0]
[1641500073818,43.74041172,152.87,152.78,4.0]
[1641500074021,43.74041172,152.87,152.83,4.0]
[1641500074218,36.91741172,152.92,152.83,4.0]
[1641500074419,36.91741172,152.92,152.84,4.0]
[1641500075219,14.67522311,152.94,152.85,1.45152283]
[1641500075621,20.0,152.93,152.85,1.45152283]
[1641500075820,24.898,152.93,152.85,1.45152283]
[1641500076021,24.898,152.93,152.84,1.45152283]
[1641500076722,20.0,152.9,152.84,1.45152283]
[1641500076923,20.0,152.9,152.82,1.45152283]
[1641500077123,27.66479,152.85,152.82,1.45152283]
[1641500077323,34.45979,152.85,152.82,1.45152283]
[1641500077824,34.45979,152.85,152.76,1.45152283]
[1641500078024,34.45979,152.85,152.79,4.0]
[1641500078626,3.1624709,152.84,152.8,1.45152283]
[1641500079227,3.1624709,152.84,152.8,5.45152283]
[1641500079427,3.1624709,152.84,152.8,1.45152283]
[1641500079628,3.1624709,152.84,152.83,4.0]
[1641500079830,3.1624709,152.86,152.8,1.45152283]
[1641500080431,3.1624709,152.86,152.8,5.45152283]
[1641500080631,3.1624709,152.86,152.8,1.45152283]
[1641500080832,14.67473356,152.9,152.79,8.39616775]
[1641500082636,34.67473356,152.9,152.79,8.39616775]
[1641500083236,3.1624709,152.89,152.79,8.39616775]
[1641500083538,9.9214709,152.89,152.79,8.39616775]
[1641500084039,3.1624709,152.88,152.79,8.39616775]
[1641500084338,3.1624709,152.88,152.79,12.39616775]
[1641500084737,3.1624709,152.88,152.79,8.39616775]
[1641500085137,3.1624709,152.88,152.86,4.0]
[1641500085637,11.51226266,152.9,152.86,4.0]
[1641500085638,3.1624709,152.9,152.86,4.0]
[1641500086037,3.1624709,152.9,152.89,4.0]
[1641500086438,3.1624709,152.9,152.89,10.002]
[1641500086638,36.91741172,152.95,152.89,10.002]
[1641500086838,36.91741172,152.95,152.89,6.002]
[1641500087039,36.91741172,152.95,152.93,4.0]
[1641500087237,36.91741172,152.95,152.94,31.66479]
[1641500087539,36.91741172,152.95,152.92,27.66479]
[1641500087737,48.41966256,153.0,152.92,27.66479]
[1641500088138,48.41966256,153.0,152.92,31.66479]
[1641500088438,48.41966256,153.0,152.92,27.66479]
[1641500088838,36.91741172,153.0,152.92,27.66479]
[1641500089138,36.91741172,153.0,152.95,4.0]
[1641500089438,36.91741172,153.0,152.92,27.66479]
[1641500089838,48.41966256,153.01,152.92,31.66479]
[1641500090239,48.41966256,153.01,152.92,27.66479]
[1641500091041,48.41966256,153.01,152.93,4.0]
[1641500091242,27.66479,152.99,152.93,4.0]
[1641500091740,34.07979,152.99,152.83,75.08273925]
[1641500092242,34.07979,152.99,152.9,4.0]
[1641500092440,34.07979,152.99,152.84,4.0]
[1641500092441,34.07979,152.99,152.85,4.0]
[1641500092642,11.50225084,152.98,152.91,4.0]
[1641500093342,11.50225084,152.98,152.92,4.0]
[1641500093548,11.50225084,152.98,152.9,27.66479]
[1641500093744,11.50225084,152.98,152.95,4.0]
[1641500093944,11.50225084,152.98,152.9,27.66479]
[1641500094345,11.50225084,152.98,152.93,4.0]
[1641500094548,36.91741172,153.0,152.95,4.61120697]
[1641500094748,11.50225084,153.01,152.95,4.61120697]
[1641500096249,31.50225084,153.01,152.95,4.61120697]
[1641500096750,11.50225084,153.01,152.95,4.61120697]
[1641500096950,11.50225084,153.01,152.91,4.0]
[1641500097151,36.91741172,153.0,152.93,4.61173676]
[1641500097952,74.80666256,153.01,152.9,27.66479]
[1641500098852,36.91741172,152.98,152.91,4.61238284]
[1641500099254,64.58220172,152.98,152.91,4.61238284]
[1641500099753,64.58220172,152.98,152.9,27.66479]
[1641500100853,64.58220172,152.98,152.91,4.61255529]
[1641500100854,11.50225084,152.97,152.91,4.61255529]
[1641500101454,11.50225084,152.97,152.88,6.94706611]
[1641500101653,11.50225084,152.97,152.9,4.0]
[1641500102253,11.50225084,152.97,152.92,4.61245358]
[1641500102454,11.50225084,152.97,152.93,4.0]
[1641500102755,11.50225084,152.97,152.92,4.61245358]
[1641500102954,11.50225084,152.97,152.9,4.0]
[1641500103453,11.50225084,152.97,152.89,4.0]
[1641500103654,4.893,152.97,152.93,4.61219476]
[1641500104455,4.893,152.97,152.93,9.476e-05]
[1641500104653,13.83717657,152.96,152.92,9.476e-05]
[1641500105054,20.0,152.95,152.92,9.476e-05]
[1641500105454,27.66479,152.94,152.89,13.83717657]
[1641500105654,13.83717657,152.93,152.87,4.0]
[1641500105856,18.48417657,152.93,152.86,13.83717657]
[1641500106455,18.48417657,152.93,152.87,4.0]
[1641500107055,18.48417657,152.93,152.86,13.83717657]
[1641500107256,18.48417657,152.93,152.89,4.0]
[1641500107457,4.647,152.93,152.89,4.0]
[1641500107657,4.647,152.93,152.87,13.83717657]
[1641500107858,13.83717657,152.94,152.87,13.83717657]
[1641500108057,13.83717657,152.94,152.92,4.0]
[1641500108258,13.83717657,152.94,152.87,13.83717657]
[1641500108458,13.83717657,152.95,152.92,4.0]
[1641500108660,13.83717657,152.95,152.87,17.83717657]
[1641500109359,13.83717657,152.95,152.9,27.66479]
[1641500109561,13.83717657,152.96,152.94,4.0]
[1641500109760,13.83717657,152.96,152.9,33.07379]
[1641500110162,13.83717657,152.96,152.94,4.0]
[1641500110364,13.83717657,152.96,152.94,10.276]
[1641500110563,13.83717657,152.98,152.94,10.276]
[1641500110862,13.83717657,152.98,152.94,6.276]
[1641500111062,13.83717657,152.98,152.94,10.276]
[1641500111265,13.83717657,152.98,152.94,6.276]
[1641500112062,13.83717657,152.99,152.94,6.276]
[1641500112462,13.83717657,152.99,152.94,10.276]
[1641500112864,13.83717657,152.97,152.94,6.276]
[1641500114165,13.83717657,152.97,152.94,4.0]
[1641500114366,13.83717657,152.97,152.9,41.50196657]
[1641500115166,13.83717657,152.98,152.9,41.50196657]
[1641500115373,13.83717657,152.98,152.97,4.0]
[1641500115868,13.83717657,152.98,152.95,27.66479]
[1641500116069,13.83717657,152.99,152.95,4.0]
[1641500116270,13.83717657,152.99,152.91,20.78345554]
[1641500116471,13.83717657,152.99,152.96,4.0]
[1641500116970,13.83717657,152.98,152.91,20.78345554]
[1641500117171,13.83717657,152.98,152.95,4.0]
[1641500117571,13.83717657,152.98,152.91,20.78345554]
[1641500118172,13.83717657,152.98,152.97,4.0]
[1641500118671,13.83717657,152.98,152.91,20.78345554]
[1641500118870,6.599,153.01,152.91,20.78345554]
[1641500118871,13.83717657,152.99,152.92,13.83717657]
[1641500119271,20.0,152.98,152.92,13.83717657]
[1641500119472,55.32958,152.93,152.92,13.83717657]
[1641500119672,60.12558,152.93,152.92,13.83717657]
[1641500120072,60.12558,152.93,152.88,4.0]
[1641500120476,60.12558,152.93,152.86,17.83717657]
[1641500120675,20.0,152.92,152.86,13.83717657]
[1641500120874,60.12558,152.93,152.86,13.83717657]
[1641500121476,27.66479,152.89,152.85,13.83717657]
[1641500121676,34.19079,152.89,152.85,13.83717657]
[1641500122076,54.19079,152.89,152.85,13.83717657]
[1641500122278,34.19079,152.89,152.85,13.83717657]
[1641500122477,68.02796657,152.89,152.81,20.78345554]
[1641500122677,48.02796657,152.89,152.81,20.78345554]
[1641500123579,95.69275657,152.89,152.81,20.78345554]
[1641500123780,75.69275657,152.89,152.81,20.78345554]
[1641500123981,13.83717657,152.86,152.79,17.83717657]
[1641500124180,13.83717657,152.86,152.8,4.0]
[1641500124381,13.83717657,152.86,152.79,17.83717657]
[1641500124582,13.83717657,152.86,152.8,4.0]
[1641500124982,13.83717657,152.86,152.78,20.78345554]
[1641500125183,33.83717657,152.86,152.78,20.78345554]
[1641500125582,27.66479,152.82,152.78,20.78345554]
[1641500125783,34.26379,152.82,152.78,20.78345554]
[1641500125983,34.26379,152.82,152.78,13.83717657]
[1641500126183,54.26379,152.82,152.76,13.83717657]
[1641500127384,17.00414463,152.81,152.75,1.4506978]
[1641500128589,13.83717657,152.79,152.74,1.4506978]
[1641500129689,13.83717657,152.8,152.74,1.4506978]
[1641500130591,20.0,152.79,152.74,1.4506978]
[1641500130991,13.83717657,152.8,152.74,1.4506978]
[1641500131592,44.66893463,152.78,152.73,1.4506978]
[1641500131791,51.26693463,152.78,152.73,1.4506978]
[1641500132594,3.16696806,152.77,152.72,15.28787437]
[1641500133395,34.26279,152.78,152.73,13.83717657]
[1641500136600,3.16814207,152.77,152.71,15.28787437]
[1641500137503,3.16814207,152.77,152.71,19.28787437]
[1641500138303,3.16814207,152.77,152.71,15.28787437]
[1641500138904,3.16814207,152.77,152.72,15.28787437]
[1641500139906,17.00531864,152.77,152.71,1.4506978]
[1641500140607,17.00531864,152.77,152.7,4.0]
[1641500141609,17.00531864,152.77,152.71,1.4506978]
[1641500144211,37.00531864,152.77,152.71,1.4506978]
[1641500145110,3.16814207,152.76,152.71,1.4506978]
[1641500146513,3.16814207,152.76,152.7,17.83717657]
[1641500147314,3.16814207,152.76,152.71,1.4506978]
[1641500148113,3.16814207,152.76,152.7,13.83717657]
[1641500148615,3.16814207,152.76,152.7,17.83717657]
[1641500148814,20.0,152.73,152.7,13.83717657]
[1641500149016,27.119,152.73,152.65,11.27859219]
[1641500149214,4.0,152.7,152.62,50.84792474]
[1641500149414,4.0,152.7,152.62,42.64792474]
[1641500149816,27.66479,152.68,152.62,42.64792474]
[1641500150015,33.08379,152.68,152.62,42.64792474]
[1641500150215,33.08379,152.68,152.62,4.0]
[1641500150418,33.08379,152.68,152.56,27.66479]
[1641500150716,4.0,152.67,152.56,27.66479]
[1641500151617,4.0,152.65,152.53,64.8565]
[1641500151817,27.66479,152.6,152.53,64.8565]
[1641500152017,34.10079,152.6,152.52,27.66479]
[1641500153917,4.0,152.58,152.52,27.66479]
[1641500154117,4.0,152.57,152.52,27.66479]
[1641500154517,4.0,152.53,152.52,27.66479]
[1641500154717,5.201,152.53,152.5,15.72189842]
[1641500155118,5.201,152.53,152.5,12.86189842]
[1641500155317,5.201,152.53,152.46,112.39783658]
[1641500155521,5.201,152.53,152.43,71.9771]
[1641500155718,5.201,152.53,152.45,27.66479]
[1641500155719,9.201,152.53,152.45,27.66479]
[1641500156119,5.201,152.53,152.43,95.64189]
[1641500156319,20.0,152.52,152.41,92.17145103]
[1641500156522,24.0,152.52,152.4,156.84375103]
[1641500156721,5.201,152.53,152.4,156.84375103]
[1641500157321,9.201,152.53,152.4,156.84375103]
[1641500157527,5.201,152.53,152.4,156.84375103]
[1641500157722,32.86579,152.53,152.43,27.66479]
[1641500158220,32.86579,152.53,152.43,31.66479]
[1641500158422,36.86579,152.53,152.43,27.66479]
[1641500158921,36.86579,152.53,152.41,27.66479]
[1641500159521,4.0,152.5,152.38,92.17145103]
[1641500159721,24.0,152.51,152.41,27.66479]
[1641500160024,36.86579,152.53,152.41,27.66479]
[1641500160522,4.0,152.52,152.41,83.16729197]
[1641500160725,4.0,152.51,152.41,55.50250197]
[1641500160925,4.0,152.52,152.41,55.50250197]
[1641500161124,52.86579,152.53,152.41,55.50250197]
[1641500161323,4.0,152.52,152.41,55.50250197]
[1641500161522,4.0,152.51,152.41,55.50250197]
[1641500161728,4.0,152.52,152.38,27.66479]
[1641500162024,27.66479,152.5,152.38,27.66479]
[1641500162427,4.0,152.48,152.38,27.66479]
[1641500162626,9.671,152.48,152.38,27.66479]
[1641500163625,5.671,152.48,152.38,27.66479]
[1641500163826,5.671,152.48,152.39,4.0]
[1641500164027,20.26235306,152.5,152.38,27.66479]
[1641500164227,26.36035306,152.5,152.38,27.66479]
[1641500164428,30.36035306,152.5,152.38,27.66479]
[1641500164727,30.36035306,152.5,152.38,83.16729197]
[1641500164728,34.98642184,152.5,152.38,83.16729197]
[1641500165128,30.98642184,152.5,152.38,83.16729197]
[1641500165732,30.98642184,152.5,152.38,87.16729197]
[1641500166128,4.62606878,152.49,152.48,4.62630307]
[1641500167127,4.62606878,152.49,152.41,4.0]
[1641500167927,4.62606878,152.49,152.41,31.66479]
[1641500168829,4.0,152.48,152.41,27.66479]
[1641500169030,24.62606878,152.49,152.41,27.66479]
[1641500169429,20.0,152.49,152.42,6.93989642]
[1641500171231,38.56842184,152.5,152.42,6.93989642]
[1641500171640,34.56842184,152.5,152.42,6.93989642]
[1641500171833,34.56842184,152.5,152.49,4.62623828]
[1641500172432,38.56842184,152.5,152.49,4.62623828]
[1641500172632,34.56842184,152.5,152.42,6.93989642]
[1641500173033,38.56842184,152.5,152.42,6.93989642]
[1641500173333,34.56842184,152.5,152.42,6.93989642]
[1641500173632,38.56842184,152.5,152.42,6.93989642]
[1641500173834,34.56842184,152.5,152.42,6.93989642]
[1641500175236,29.94235306,152.5,152.42,6.93989642]
[1641500175837,29.94235306,152.5,152.45,4.0]
[1641500176137,9.68,152.5,152.46,4.0]
[1641500176336,10.0,152.54,152.46,4.0]
[1641500176539,10.0,152.54,152.45,4.559]
[1641500177141,10.0,152.54,152.42,6.93989642]
[1641500177342,10.0,152.54,152.43,4.0]
[1641500177838,10.0,152.54,152.46,27.66479]
[1641500179941,10.0,152.54,152.46,41.462272]
[1641500180643,27.66479,152.56,152.46,45.462272]
[1641500180842,27.66479,152.58,152.47,20.69683752]
[1641500181845,4.0,152.55,152.48,13.797482]
[1641500182046,5.661,152.55,152.48,13.797482]
[1641500182245,24.0,152.53,152.48,13.797482]
[1641500182445,20.0,152.53,152.48,13.797482]
[1641500182645,20.0,152.53,152.45,13.797482]
[1641500183748,20.0,152.53,152.44,13.797482]
[1641500183946,27.66479,152.52,152.44,13.797482]
[1641500184445,4.0,152.5,152.44,13.797482]
[1641500184646,28.98,152.5,152.44,13.797482]
[1641500184847,4.98,152.5,152.44,13.797482]
[1641500185346,28.98,152.5,152.44,13.797482]
[1641500185547,24.0,152.47,152.42,20.69696117]
[1641500185747,28.98,152.5,152.42,20.69696117]
[1641500185949,27.66479,152.46,152.42,20.69696117]
[1641500186152,34.57079,152.46,152.42,20.69696117]
[1641500186348,34.57079,152.46,152.4,13.797482]
[1641500187348,34.57079,152.46,152.38,41.462272]
[1641500188451,34.57079,152.46,152.39,20.69705291]
[1641500189550,34.57079,152.46,152.4,13.797482]
[1641500190650,27.66479,152.46,152.4,13.797482]
[1641500192452,27.66479,152.46,152.39,22.1342894]
[1641500194555,37.38479,152.46,152.39,22.1342894]
[1641500195657,37.38479,152.46,152.4,13.797482]
[1641500195955,57.38479,152.46,152.4,13.797482]
[1641500196257,37.38479,152.46,152.4,13.797482]
[1641500196456,37.38479,152.46,152.39,1.43723649]
[1641500196657,42.02479,152.46,152.39,1.43723649]
[1641500197857,37.38479,152.46,152.39,1.43723649]
[1641500198057,9.72,152.46,152.39,1.43723649]
[1641500198558,9.72,152.46,152.39,22.13429822]
[1641500199359,9.72,152.46,152.4,13.797482]
[1641500200159,9.72,152.46,152.42,13.797482]
[1641500200360,20.0,152.45,152.42,13.797482]
[1641500201363,16.729,152.46,152.42,13.797482]
[1641500201760,16.729,152.46,152.42,8.2e-05]
[1641500202060,27.66479,152.44,152.39,8.33681622]
[1641500202262,16.729,152.46,152.43,1.43723649]
[1641500202460,24.0,152.44,152.39,5.93961622]
[1641500202661,20.0,152.44,152.39,5.93961622]
[1641500202861,5.2476353,152.45,152.39,5.93961622]
[1641500203064,9.72,152.46,152.39,5.93961622]
[1641500205064,9.72,152.46,152.39,9.93961622]
[1641500205264,9.72,152.46,152.39,5.93961622]
[1641500205464,9.72,152.46,152.39,9.93961622]
[1641500205664,9.72,152.46,152.39,5.93961622]
[1641500206064,9.72,152.46,152.39,9.93961622]
[1641500206264,29.9,152.53,152.42,4.0]
[1641500206464,9.9,152.53,152.4,4.0]
[1641500206666,9.9,152.53,152.39,85.11941622]
[1641500206864,46.81741172,152.53,152.39,78.01341622]
[1641500207065,46.81741172,152.53,152.4,4.0]
[1641500207664,46.81741172,152.53,152.39,72.0738]
[1641500207866,20.925,152.53,152.39,68.0738]
[1641500208067,27.66479,152.5,152.39,68.0738]
[1641500208267,31.66479,152.5,152.39,68.0738]
[1641500208670,20.0,152.47,152.39,68.0738]
[1641500208868,27.219,152.47,152.38,27.66479]
[1641500209473,31.219,152.47,152.38,27.66479]
[1641500209871,7.219,152.47,152.38,27.66479]
[1641500210973,20.0,152.46,152.38,27.66479]
[1641500211171,24.0,152.46,152.38,27.66479]
[1641500211372,20.0,152.46,152.38,27.66479]
[1641500211974,4.0,152.45,152.38,27.66479]
[1641500212173,20.0,152.43,152.38,27.66479]
[1641500212374,27.188,152.43,152.38,27.66479]
[1641500212774,20.0,152.4,152.38,27.66479]
[1641500213374,31.188,152.43,152.38,27.66479]
[1641500213774,31.188,152.43,152.35,27.66479]
[1641500213975,27.66479,152.41,152.35,20.50479]
[1641500214375,20.0,152.4,152.35,20.50479]
[1641500214776,20.0,152.4,152.3,23.16958]
[1641500219277,24.0,152.4,152.3,23.16958]
[1641500219478,55.32958,152.41,152.3,23.16958]
[1641500220180,20.0,152.33,152.29,11.27412681]
[1641500221181,20.0,152.33,152.25,55.50250197]
[1641500221983,20.0,152.33,152.24,66.77662878]
[1641500222186,27.66479,152.32,152.24,66.77662878]
[1641500223586,27.66479,152.32,152.24,73.71229192]
[1641500224586,27.66479,152.32,152.22,62.43816511]
[1641500224888,20.25700798,152.32,152.22,62.43816511]
[1641500225186,20.25700798,152.32,152.22,6.93566314]
[1641500225387,20.0,152.3,152.22,6.93566314]
[1641500225589,20.0,152.29,152.22,6.93566314]
[1641500225788,26.151,152.29,152.22,6.93566314]
[1641500226188,27.66479,152.25,152.22,6.93566314]
[1641500226390,54.41879,152.25,152.22,6.93566314]
[1641500226588,34.41879,152.25,152.22,6.93566314]
[1641500227289,34.41879,152.25,152.21,6.93566314]
[1641500228289,34.41879,152.25,152.16,6.93566314]
[1641500228490,34.41879,152.25,152.16,10.93566314]
[1641500228690,27.66479,152.25,152.16,10.93566314]
[1641500228891,27.66479,152.25,152.16,6.93566314]
[1641500229292,27.66479,152.25,152.16,10.93566314]
[1641500229493,27.66479,152.25,152.18,4.0]
[1641500230096,27.66479,152.25,152.17,4.0]
[1641500230297,27.66479,152.25,152.16,66.43816511]
[1641500230499,27.66479,152.25,152.16,62.43816511]
[1641500230699,27.66479,152.25,152.16,66.43816511]
[1641500231699,27.66479,152.25,152.16,62.43816511]
[1641500231899,27.66479,152.25,152.17,55.50250197]
[1641500233102,27.66479,152.25,152.24,13.89279149]
[1641500234102,27.66479,152.25,152.16,62.43816511]
[1641500234404,27.66479,152.19,152.16,62.43816511]
[1641500234603,33.16779,152.19,152.16,48.75816511]
[1641500234806,33.16779,152.19,152.16,37.53816511]
[1641500235004,53.16779,152.19,152.14,11.27582675]
[1641500235205,4.0,152.18,152.14,1.15582675]
[1641500235404,20.0,152.15,152.13,55.58088735]
[1641500235603,4.0,152.14,152.13,18.8767141]
[1641500235804,4.0,152.14,152.13,17.6567141]
[1641500236304,59.32958,152.14,152.12,6.56512605]
[1641500236604,59.32958,152.14,152.12,4.28512605]
[1641500237605,4.0,152.13,152.12,4.28512605]
[1641500237807,59.32958,152.14,152.12,4.28512605]
[1641500238106,4.63091312,152.13,152.12,4.28512605]
[1641500238707,4.63091312,152.13,152.09,20.24563025]
[1641500238906,20.0,152.12,152.09,20.24563025]
[1641500239907,65.49249312,152.14,152.09,20.24563025]
[1641500240107,4.63091312,152.13,152.09,20.24563025]
[1641500240606,27.66479,152.11,152.09,20.24563025]
[1641500241508,33.30079,152.11,152.09,24.24563025]
[1641500241707,33.30079,152.11,152.09,20.24563025]
[1641500241909,4.63091312,152.17,152.09,20.24563025]
[1641500242912,32.29570312,152.18,152.1,1.43410864]
[1641500243310,52.29570312,152.18,152.1,1.43410864]
[1641500243912,4.63091312,152.16,152.1,1.43410864]
[1641500244113,4.63091312,152.16,152.1,7.78910864]
[1641500244514,4.63091312,152.16,152.13,27.66479]
[1641500244915,4.63348011,152.18,152.14,4.0]
[1641500245115,8.011e-05,152.18,152.15,4.0]
[1641500245516,8.011e-05,152.18,152.14,9.646]